bitfinex-derivatives/quotes_BTCF0:USTF0_20250911
["timestamp","ask_amount","ask_price","bid_price","bid_amount"]
[1757601195234,0.00204,114400.0,114390.0,1.17864]
[1757601196935,0.00204,114400.0,114390.0,1.42864]
[1757601197230,0.00204,114400.0,114390.0,1.53807788]
[1757601197630,0.00104,114400.0,114390.0,1.53807788]
[1757601197832,0.00104,114400.0,114390.0,1.53907788]
[1757601198033,0.00104,114400.0,114390.0,1.53899788]
[1757601198228,0.00104,114400.0,114390.0,0.72223788]
[1757601198229,4e-05,114400.0,114390.0,0.72223788]
[1757601198631,4e-05,114400.0,114390.0,1.43152]
[1757601199134,4e-05,114400.0,114390.0,0.6128]
[1757601199343,4e-05,114400.0,114390.0,0.6750779]
[1757601199527,4e-05,114400.0,114390.0,1.4937979]
[1757601200329,4e-05,114400.0,114390.0,0.6750779]
[1757601200638,4e-05,114400.0,114390.0,1.4937579]
[1757601201235,4e-05,114400.0,114390.0,1.4937179]
[1757601201436,4e-05,114400.0,114390.0,0.6128]
[1757601201636,4e-05,114400.0,114390.0,1.50927283]
[1757601201939,0.03085,114400.0,114390.0,1.50927283]
[1757601202128,0.03085,114400.0,114390.0,0.69063283]
[1757601202328,4e-05,114400.0,114390.0,1.43144]
[1757601204342,4e-05,114400.0,114390.0,1.49367674]
[1757601204642,4e-05,114400.0,114390.0,1.58107384]
[1757601205036,4e-05,114400.0,114390.0,1.5188371]
[1757601205236,4e-05,114400.0,114390.0,1.43144]
[1757601205641,4e-05,114400.0,114390.0,1.50927283]
[1757601206338,4e-05,114400.0,114390.0,1.43144]
[1757601206535,4e-05,114400.0,114390.0,1.50927283]
[1757601209748,4e-05,114400.0,114390.0,0.69063283]
[1757601209948,4e-05,114400.0,114390.0,1.50919283]
[1757601211449,4e-05,114400.0,114390.0,1.59658993]
[1757601212849,0.03203,114430.0,114390.0,1.54397923]
[1757601213052,0.03203,114430.0,114410.0,0.42305256]
[1757601213241,0.03203,114430.0,114420.0,0.81852]
[1757601213446,0.08715,114430.0,114420.0,0.81852]
[1757601214246,0.03203,114430.0,114420.0,0.81852]
[1757601214445,0.10977078,114440.0,114420.0,1.17932]
[1757601214651,0.1009043,114440.0,114430.0,0.3608]
[1757601214951,0.1009043,114440.0,114430.0,0.42305256]
[1757601215149,0.03081,114440.0,114430.0,0.42205256]
[1757601216550,0.03081,114440.0,114430.0,0.3598]
[1757601217048,0.03081,114440.0,114430.0,0.3568]
[1757601217550,0.03181,114440.0,114430.0,0.41904294]
[1757601217747,0.03185,114440.0,114430.0,0.41904294]
[1757601219046,0.00104,114440.0,114430.0,0.41904294]
[1757601219351,0.00104,114440.0,114430.0,0.43463283]
[1757601219651,0.03185,114440.0,114430.0,1.25303283]
[1757601220037,0.00104,114440.0,114430.0,1.25303283]
[1757601221850,0.00104,114440.0,114430.0,1.26176283]
[1757601222845,0.00104,114440.0,114430.0,1.26172283]
[1757601223547,0.00104,114440.0,114430.0,0.44336283]
[1757601223855,0.00104,114440.0,114430.0,1.26168283]
[1757601224154,4e-05,114440.0,114430.0,1.26368283]
[1757601225056,0.08597,114440.0,114430.0,1.26368283]
[1757601225257,0.03085,114440.0,114430.0,1.26368283]
[1757601226353,4e-05,114440.0,114430.0,1.35104943]
[1757601226748,4e-05,114440.0,114430.0,1.26368283]
[1757601227562,4e-05,114440.0,114430.0,1.26364283]
[1757601228057,4e-05,114440.0,114430.0,1.35100943]
[1757601228457,4e-05,114440.0,114430.0,1.26364283]
[1757601229863,0.08597,114440.0,114430.0,1.26360283]
[1757601230061,0.08597,114440.0,114430.0,0.44536283]
[1757601230249,0.33597,114440.0,114430.0,0.36753]
[1757601230453,0.33597,114440.0,114430.0,0.89118244]
[1757601231864,0.33597,114440.0,114430.0,0.07294244]
[1757601232159,0.69677,114440.0,114430.0,0.82893]
[1757601232362,0.69677,114440.0,114430.0,0.01073]
[1757601232556,0.69677,114440.0,114430.0,0.82893]
[1757601233564,0.69677,114440.0,114430.0,0.89114244]
[1757601233763,0.69677,114440.0,114430.0,0.82893]
[1757601235265,0.69677,114440.0,114430.0,0.01073]
[1757601235455,0.69677,114440.0,114430.0,0.82893]
[1757601235656,0.69677,114440.0,114430.0,0.01073]
[1757601235852,0.69677,114440.0,114430.0,0.82893]
[1757601236257,0.69677,114440.0,114430.0,0.01073]
[1757601236460,0.03008,114410.0,114400.0,0.01251679]
[1757601236666,0.44311,114410.0,114400.0,0.60776]
[1757601236862,0.08231,114410.0,114400.0,0.60776]
[1757601237763,0.08231,114410.0,114400.0,0.61076]
[1757601238064,0.44311,114410.0,114400.0,0.61576]
[1757601238266,0.69311,114410.0,114400.0,0.008]
[1757601238467,0.69311,114410.0,114400.0,0.8262]
[1757601238669,0.76466269,114410.0,114400.0,0.8262]
[1757601239168,0.51466269,114410.0,114400.0,0.8262]
[1757601240768,0.52366406,114410.0,114400.0,0.8262]
[1757601241568,0.16286406,114410.0,114400.0,0.8262]
[1757601241963,0.15386269,114410.0,114400.0,1.0762]
[1757601242163,0.07155269,114410.0,114400.0,1.437]
[1757601242369,0.04782478,114420.0,114400.0,1.437]
[1757601242670,0.03008,114430.0,114410.0,0.3608]
[1757601242861,0.03008,114430.0,114420.0,0.81824]
[1757601242862,0.08231,114430.0,114420.0,0.81824]
[1757601244567,0.08231,114430.0,114420.0,0.82024]
[1757601244767,0.03008,114430.0,114420.0,0.82024]
[1757601245172,0.03008,114430.0,114420.0,1.18104]
[1757601245371,0.03008,114430.0,114420.0,1.43204]
[1757601245570,0.03008,114430.0,114420.0,0.6138]
[1757601245766,0.03008,114430.0,114420.0,1.43204]
[1757601246067,0.08231,114430.0,114420.0,1.07124]
[1757601246273,0.44311,114430.0,114420.0,0.003]
[1757601246462,0.44311,114430.0,114420.0,0.88348879]
[1757601246770,0.51413997,114430.0,114420.0,0.88348879]
[1757601247967,0.51413997,114430.0,114420.0,0.06524879]
[1757601249178,0.78171106,114430.0,114420.0,0.88344879]
[1757601249668,0.53171106,114430.0,114420.0,0.8212]
[1757601250171,0.53171106,114430.0,114420.0,0.003]
[1757601250368,0.53171106,114430.0,114420.0,0.88344879]
[1757601252266,0.53171106,114430.0,114420.0,0.06524879]
[1757601252468,0.53171106,114430.0,114420.0,0.88344879]
[1757601253173,0.15333997,114430.0,114420.0,0.88344879]
[1757601253476,0.40084551,114440.0,114420.0,1.20807879]
[1757601253772,0.40084551,114440.0,114420.0,0.95807879]
[1757601254174,0.40084551,114440.0,114430.0,0.11167879]
[1757601254477,0.45307551,114440.0,114430.0,0.11167879]
[1757601254667,0.45307551,114440.0,114430.0,0.92987879]
[1757601255367,0.45307551,114440.0,114430.0,0.11167879]
[1757601255574,0.45307551,114440.0,114430.0,0.92987879]
[1757601256071,0.45307551,114440.0,114430.0,0.11267879]
[1757601256274,0.45307551,114440.0,114430.0,0.93083879]
[1757601256575,0.52248498,114440.0,114430.0,0.93083879]
[1757601256774,0.52248498,114440.0,114430.0,0.11267879]
[1757601256977,0.52248498,114440.0,114430.0,0.93083879]
[1757601257164,0.52248498,114440.0,114430.0,0.11267879]
[1757601257369,0.52248498,114440.0,114430.0,0.93183879]
[1757601257872,0.52248498,114440.0,114430.0,0.93083879]
[1757601258073,0.52248498,114440.0,114430.0,0.93283879]
[1757601258273,0.52248498,114440.0,114430.0,0.87059]
[1757601258863,0.16168498,114440.0,114430.0,0.87059]
[1757601259070,0.52248498,114440.0,114430.0,0.82116]
[1757601259381,0.77248498,114440.0,114430.0,0.003]
[1757601259575,0.77248498,114440.0,114430.0,0.82116]
[1757601260975,1.13328498,114440.0,114430.0,0.87059]
[1757601261278,0.88328498,114440.0,114430.0,0.87059]
[1757601262180,0.52248498,114440.0,114430.0,0.87059]
[1757601266876,0.49167498,114440.0,114430.0,0.94842283]
[1757601267077,0.07864498,114440.0,114430.0,0.87059]
[1757601267285,0.1413886,114440.0,114430.0,0.87059]
[1757601267676,0.5339786,114440.0,114430.0,0.87059]
[1757601269578,0.1731786,114440.0,114430.0,0.87059]
[1757601269779,0.13219309,114440.0,114430.0,0.94842283]
[1757601270085,0.07866309,114440.0,114430.0,1.48139]
[1757601270281,0.07866309,114440.0,114430.0,1.59082788]
[1757601270686,0.00925362,114440.0,114430.0,1.59082788]
[1757601271181,0.00925362,114440.0,114430.0,1.67819438]
[1757601271386,4e-05,114460.0,114450.0,0.0684]
[1757601271585,4e-05,114460.0,114450.0,1.60812]
[1757601271880,4e-05,114460.0,114450.0,1.71730669]
[1757601272086,4e-05,114460.0,114450.0,2.06386431]
[1757601272283,4e-05,114460.0,114450.0,1.95467762]
[1757601272786,0.00104,114460.0,114450.0,1.95567762]
[1757601272982,0.39259,114500.0,114480.0,0.07765]
[1757601273183,4e-05,114510.0,114500.0,0.05245]
[1757601273388,4e-05,114510.0,114500.0,1.31034324]
[1757601274188,4e-05,114510.0,114500.0,1.48253]
[1757601274488,4e-05,114510.0,114500.0,0.66325]
[1757601274686,4e-05,114510.0,114500.0,1.48249]
[1757601275190,4e-05,114510.0,114500.0,0.66325]
[1757601275484,4e-05,114510.0,114500.0,1.48317]
[1757601275687,4e-05,114510.0,114500.0,1.48309]
[1757601275884,4e-05,114510.0,114500.0,0.41425]
[1757601276085,4e-05,114510.0,114500.0,1.23301]
[1757601276389,0.08536,114510.0,114500.0,0.87221]
[1757601276782,0.08536,114510.0,114500.0,0.87321]
[1757601277185,0.08536,114510.0,114500.0,0.05445]
[1757601277684,0.44616,114510.0,114500.0,0.87321]
[1757601278089,0.44616,114510.0,114500.0,0.87313]
[1757601278388,0.69616,114510.0,114500.0,0.87297]
[1757601278589,0.69616,114510.0,114500.0,0.87517]
[1757601278778,0.69616,114510.0,114500.0,0.002]
[1757601278979,0.69616,114510.0,114500.0,0.82276]
[1757601279188,0.69616,114510.0,114500.0,0.87521]
[1757601279388,0.44616,114510.0,114500.0,0.87521]
[1757601280090,0.69616,114510.0,114500.0,0.82252]
[1757601280592,0.69616,114510.0,114500.0,0.82248]
[1757601281390,0.69616,114510.0,114500.0,0.82236]
[1757601281589,0.44616,114510.0,114500.0,0.87481]
[1757601282284,0.69616,114510.0,114500.0,0.82136]
[1757601282682,0.69616,114510.0,114500.0,0.001]
[1757601282883,0.69616,114510.0,114500.0,0.82288]
[1757601283686,0.69616,114510.0,114500.0,0.82188]
[1757601283886,0.03179,114490.0,114480.0,1.76232]
[1757601284080,0.39259,114490.0,114480.0,2.58736]
[1757601284478,0.75339,114490.0,114480.0,1.76232]
[1757601284683,0.08532,114460.0,114450.0,0.41325]
[1757601284891,0.08532,114460.0,114450.0,1.23813]
[1757601285289,0.08532,114460.0,114450.0,0.87733]
[1757601285490,0.39259,114470.0,114450.0,0.89328]
[1757601285692,0.39259,114470.0,114450.0,0.0684]
[1757601285896,0.44612,114470.0,114460.0,0.87757]
[1757601286592,0.04086665,114480.0,114460.0,1.48837]
[1757601286781,0.04086665,114480.0,114460.0,1.23837]
[1757601286981,0.03283,114510.0,114480.0,0.08138]
[1757601287181,4e-05,114510.0,114500.0,0.08138]
[1757601287582,0.00887826,114510.0,114500.0,0.08138]
[1757601287779,4e-05,114510.0,114500.0,0.08138]
[1757601288386,0.00878272,114510.0,114500.0,0.08138]
[1757601288691,0.01178272,114510.0,114500.0,0.08138]
[1757601288897,0.01378272,114510.0,114500.0,0.44218]
[1757601289697,0.26378272,114510.0,114500.0,0.44218]
[1757601292795,0.26378272,114510.0,114500.0,0.08138]
[1757601292996,0.26880272,114510.0,114500.0,0.82416]
[1757601293907,0.26880272,114510.0,114490.0,0.38973]
[1757601294205,0.01880272,114510.0,114490.0,0.38973]
[1757601294407,0.01880272,114510.0,114500.0,0.7883]
[1757601294606,0.01880272,114510.0,114500.0,1.1491]
[1757601296296,0.8083,114540.0,114500.0,1.1491]
[1757601296611,0.00502,114530.0,114520.0,0.44202]
[1757601296819,0.00502,114530.0,114520.0,1.63106]
[1757601297200,0.00502,114530.0,114520.0,1.62906]
[1757601297703,0.00502,114530.0,114520.0,0.80082]
[1757601297900,0.00502,114530.0,114520.0,1.57878]
[1757601298100,0.00902,114530.0,114520.0,1.57878]
[1757601298806,0.01302,114530.0,114520.0,1.57878]
[1757601299906,0.01302,114530.0,114520.0,1.57846]
[1757601300105,0.01302,114530.0,114520.0,1.58166]
[1757601300307,0.01302,114530.0,114520.0,1.58154]
[1757601301003,0.0784302,114530.0,114520.0,1.58154]
[1757601301205,0.29352,114580.0,114520.0,1.58154]
[1757601301409,0.69275375,114580.0,114550.0,0.3608]
[1757601301609,0.3608,114560.0,114540.0,0.3608]
[1757601301807,0.25,114550.0,114540.0,0.55856]
[1757601302007,0.78957375,114550.0,114540.0,0.55068017]
[1757601302203,1.15037375,114550.0,114530.0,0.3608]
[1757601302410,0.25,114540.0,114530.0,0.77761]
[1757601302714,0.28834907,114540.0,114530.0,0.77761]
[1757601302912,0.28834907,114540.0,114530.0,0.80871]
[1757601303116,0.03834907,114540.0,114530.0,1.16951]
[1757601303601,1.53834907,114540.0,114530.0,1.16951]
[1757601303804,1.78834907,114540.0,114530.0,1.16951]
[1757601304006,0.03834907,114540.0,114530.0,1.16951]
[1757601304802,0.393721,114580.0,114530.0,1.16951]
[1757601305115,0.4475,114550.0,114540.0,0.0291]
[1757601305316,0.51601195,114550.0,114540.0,1.33814]
[1757601305508,0.06851195,114550.0,114540.0,1.33814]
[1757601305813,0.01798339,114560.0,114550.0,0.0311]
[1757601306116,0.01798339,114560.0,114550.0,0.3909]
[1757601306318,0.08860465,114560.0,114550.0,0.3909]
[1757601307516,0.08860465,114560.0,114550.0,0.37145609]
[1757601307717,0.08860465,114560.0,114550.0,0.37345609]
[1757601307918,0.08860465,114560.0,114550.0,1.20749609]
[1757601308210,0.08860465,114560.0,114550.0,0.36561818]
[1757601308407,0.08860465,114560.0,114550.0,1.18245818]
[1757601309116,0.33860465,114560.0,114550.0,1.18245818]
[1757601310807,0.33860465,114560.0,114550.0,1.20073818]
[1757601311416,0.08860465,114560.0,114550.0,1.47998818]
[1757601311607,0.08864465,114560.0,114550.0,1.47998818]
[1757601312014,0.08864465,114560.0,114550.0,1.72998818]
[1757601312221,0.08864465,114560.0,114550.0,1.76109943]
[1757601312421,0.08864465,114560.0,114550.0,1.72998818]
[1757601313214,0.08864465,114560.0,114550.0,0.94698818]
[1757601313520,0.08864465,114560.0,114550.0,1.78466818]
[1757601313714,0.08864465,114560.0,114550.0,1.81577943]
[1757601313916,0.01802339,114560.0,114550.0,1.81577943]
[1757601314818,0.01802339,114560.0,114550.0,0.97809943]
[1757601315021,0.01802339,114560.0,114550.0,1.78734818]
[1757601315416,0.01802339,114560.0,114550.0,1.81845943]
[1757601315613,0.06906548,114570.0,114560.0,0.08122]
[1757601315915,1.51788199,114590.0,114580.0,0.0311]
[1757601316115,1.51788199,114590.0,114580.0,1.59278]
[1757601316516,0.01788199,114590.0,114580.0,1.59278]
[1757601316724,0.01788199,114590.0,114580.0,0.7527]
[1757601317129,0.01788199,114590.0,114580.0,0.65982]
[1757601317517,0.01788199,114590.0,114580.0,1.49914]
[1757601317717,0.01788199,114590.0,114580.0,0.65982]
[1757601317913,0.01788199,114590.0,114580.0,1.43675]
[1757601318321,0.01988199,114590.0,114580.0,1.43675]
[1757601318623,0.26988199,114590.0,114580.0,1.43675]
[1757601318924,0.02088199,114590.0,114580.0,1.716]
[1757601319326,0.09088453,114590.0,114580.0,1.716]
[1757601319527,0.02088199,114590.0,114580.0,1.716]
[1757601320522,0.01988199,114590.0,114580.0,1.716]
[1757601320824,0.01988199,114590.0,114580.0,1.79715972]
[1757601321018,0.01988199,114590.0,114580.0,0.9266]
[1757601321225,0.01888199,114590.0,114580.0,1.79679972]
[1757601321424,0.01888199,114590.0,114580.0,1.77552]
[1757601321728,0.01888199,114590.0,114580.0,1.79879972]
[1757601322227,0.01788199,114590.0,114580.0,1.80079972]
[1757601322428,0.01788199,114590.0,114580.0,2.02752]
[1757601322723,1.5,114620.0,114600.0,0.04843]
[1757601322932,1.5,114620.0,114610.0,1.56996]
[1757601323122,1.5,114620.0,114610.0,1.56984]
[1757601323524,1.51735111,114620.0,114610.0,1.56984]
[1757601323728,1.76735111,114620.0,114600.0,0.3608]
[1757601323927,1.58693297,114620.0,114610.0,0.53966]
[1757601324226,1.83693297,114620.0,114610.0,0.53295955]
[1757601324427,1.58693297,114620.0,114610.0,0.84824]
[1757601324630,1.58693297,114620.0,114610.0,0.70191]
[1757601324828,1.58593297,114620.0,114610.0,0.68741999]
[1757601325028,1.58893297,114620.0,114610.0,0.64376712]
[1757601325432,1.58893297,114620.0,114600.0,0.33080287]
[1757601325629,1.83893297,114620.0,114610.0,0.848]
[1757601326023,1.58893297,114620.0,114610.0,0.848]
[1757601326219,2.20005019,114620.0,114600.0,0.24551287]
[1757601326423,2.20005019,114620.0,114590.0,0.40923]
[1757601326424,0.3608,114610.0,114580.0,0.66326247]
[1757601326624,0.3608,114600.0,114590.0,0.84768]
[1757601326934,2.17535809,114620.0,114590.0,1.20848]
[1757601327322,2.17535809,114620.0,114600.0,0.84768]
[1757601327533,2.42535809,114620.0,114590.0,0.3608]
[1757601327729,0.3608,114610.0,114590.0,0.99376]
[1757601327928,0.3608,114610.0,114590.0,0.84764]
[1757601328233,0.3608,114610.0,114580.0,1.14637247]
[1757601328527,2.17535809,114620.0,114590.0,0.3608]
[1757601329135,0.001,114610.0,114590.0,0.3608]
[1757601329525,0.001,114610.0,114590.0,1.45848]
[1757601329930,0.001,114610.0,114590.0,0.3608]
[1757601329931,0.251,114610.0,114590.0,0.3608]
[1757601330131,0.28224064,114610.0,114590.0,0.3608]
[1757601330429,1.12960064,114610.0,114590.0,0.3608]
[1757601330632,0.28224064,114610.0,114590.0,0.3608]
[1757601331142,0.28224064,114610.0,114590.0,0.35660324]
[1757601331434,0.28124064,114610.0,114590.0,0.30990324]
[1757601331739,0.64204064,114610.0,114590.0,0.3608]
[1757601331932,0.64204064,114610.0,114580.0,1.10239085]
[1757601332119,0.39204064,114610.0,114580.0,1.35239085]
[1757601332324,0.39304064,114610.0,114580.0,1.35239085]
[1757601332832,0.39304064,114610.0,114590.0,0.6108]
[1757601333130,0.3618,114610.0,114590.0,0.33129]
[1757601333331,0.64304064,114610.0,114580.0,0.87003085]
[1757601333532,0.3608,114600.0,114580.0,0.77857085]
[1757601333734,0.37866298,114600.0,114580.0,0.61492]
[1757601333931,0.37866298,114600.0,114580.0,1.12665]
[1757601334133,0.37866298,114600.0,114570.0,0.35682]
[1757601334430,0.37866298,114600.0,114580.0,0.84732]
[1757601334639,0.37866298,114600.0,114580.0,1.12657]
[1757601334932,0.37866298,114600.0,114580.0,0.84832]
[1757601335230,0.37866298,114600.0,114580.0,0.81779]
[1757601336332,0.37866298,114600.0,114580.0,0.74762838]
[1757601336532,0.37866298,114600.0,114580.0,0.74217838]
[1757601336833,0.37866298,114600.0,114580.0,0.63412839]
[1757601337334,0.37866298,114600.0,114580.0,0.59045951]
[1757601337632,0.37866298,114600.0,114580.0,0.47279]
[1757601337827,1.15871809,114620.0,114580.0,0.47279]
[1757601338135,1.15871809,114620.0,114600.0,0.31713112]
[1757601338136,0.34333336,114610.0,114600.0,0.31713112]
[1757601338434,0.70413336,114610.0,114580.0,1.14344]
[1757601338629,0.70413336,114610.0,114580.0,0.84704]
[1757601338831,1.5,114600.0,114580.0,1.08262112]
[1757601339133,0.13286588,114600.0,114580.0,1.08262112]
[1757601339332,0.60513336,114610.0,114580.0,0.75970224]
[1757601339527,1.5,114600.0,114580.0,0.75257224]
[1757601339721,1.5,114600.0,114580.0,0.33234]
[1757601339929,1.8608,114600.0,114570.0,1.2066]
[1757601340127,0.3608,114590.0,114570.0,0.20903]
[1757601340432,0.3608,114580.0,114550.0,0.30127631]
[1757601340622,0.3608,114570.0,114550.0,1.23797943]
[1757601340937,0.37854422,114580.0,114560.0,0.22746]
[1757601341325,0.37854422,114580.0,114570.0,0.001]
[1757601341730,0.37854422,114580.0,114570.0,0.18003]
[1757601341930,0.37854422,114580.0,114570.0,0.47846]
[1757601342230,0.37854422,114580.0,114570.0,0.52878]
[1757601342427,0.37854422,114580.0,114570.0,1.37498]
[1757601342627,0.37854422,114580.0,114570.0,1.27623]
[1757601343031,0.5097319,114580.0,114570.0,1.27523]
[1757601343230,0.57867781,114580.0,114570.0,1.08124]
[1757601343529,0.59363781,114580.0,114550.0,0.40923]
[1757601343830,0.3608,114570.0,114560.0,0.84552]
[1757601344224,0.57867781,114580.0,114560.0,0.89395]
[1757601344424,0.01496,114570.0,114560.0,0.89395]
[1757601344832,0.37576,114570.0,114560.0,0.89395]
[1757601345227,0.37576,114570.0,114550.0,0.41123]
[1757601345431,0.37576,114570.0,114560.0,0.8448]
[1757601345625,0.37576,114570.0,114560.0,0.94755]
[1757601346126,0.37576,114570.0,114560.0,0.89723]
[1757601346526,0.01496,114570.0,114560.0,0.89723]
[1757601346726,0.01496,114570.0,114560.0,0.94711]
[1757601346927,0.01496,114570.0,114560.0,0.95011]
[1757601347130,4e-05,114570.0,114560.0,1.20011]
[1757601347426,4e-05,114570.0,114560.0,1.56091]
[1757601347627,1.20484,114610.0,114560.0,1.56091]
[1757601347831,0.84404,114610.0,114590.0,0.3608]
[1757601348131,1.51715659,114620.0,114590.0,0.3608]
[1757601348331,0.01496,114600.0,114590.0,0.21666816]
[1757601348530,0.01496,114600.0,114580.0,1.02036]
[1757601348723,0.3608,114610.0,114580.0,0.97669036]
[1757601348929,0.01496,114590.0,114580.0,0.97669036]
[1757601349128,0.03263486,114590.0,114580.0,0.97669036]
[1757601349325,0.03263486,114590.0,114580.0,1.02512036]
[1757601350536,0.10884486,114590.0,114580.0,0.97669036]
[1757601350836,0.10884486,114590.0,114580.0,0.97769036]
[1757601351439,0.10884486,114590.0,114580.0,0.29363036]
[1757601351637,0.10884486,114590.0,114580.0,1.14727036]
[1757601352554,0.10884486,114590.0,114580.0,1.14827036]
[1757601352838,0.10888486,114590.0,114580.0,1.14827036]
[1757601353027,0.10888486,114590.0,114580.0,1.14779036]
[1757601353230,1.05244,114620.0,114580.0,1.14779036]
[1757601353537,1.07034901,114620.0,114610.0,0.3608]
[1757601353840,1.43114901,114620.0,114600.0,0.3608]
[1757601354035,1.43114901,114620.0,114590.0,0.3608]
[1757601354231,1.8608,114610.0,114590.0,0.3608]
[1757601354637,1.8608,114610.0,114590.0,0.85196]
[1757601354836,1.8608,114610.0,114590.0,0.81314]
[1757601355036,1.8608,114610.0,114590.0,0.79478]
[1757601355442,1.8608,114610.0,114580.0,0.3618]
[1757601355733,1.86084,114610.0,114580.0,0.13185]
[1757601355938,0.3608,114600.0,114570.0,0.37043]
[1757601356135,0.37877244,114600.0,114580.0,0.85144]
[1757601356936,0.37877244,114600.0,114590.0,0.06722]
[1757601357434,1.21184,114630.0,114590.0,0.78882]
[1757601357642,0.1,114620.0,114600.0,1.21152]
[1757601357842,0.1,114620.0,114610.0,0.3608]
[1757601358135,0.14710701,114620.0,114610.0,0.18853197]
[1757601358340,0.04710701,114630.0,114610.0,0.18311067]
[1757601358542,0.11744089,114630.0,114610.0,0.18311067]
[1757601358741,0.04710701,114630.0,114610.0,0.18311067]
[1757601358937,0.04710701,114630.0,114620.0,1.21368]
[1757601359140,2.3594371,114660.0,114620.0,1.21368]
[1757601359141,0.04710701,114640.0,114620.0,1.21368]
[1757601359344,0.04710701,114640.0,114630.0,0.3608]
[1757601359546,0.40790701,114640.0,114620.0,1.04616]
[1757601360047,0.40790701,114640.0,114620.0,0.85288]
[1757601360241,0.00304,114630.0,114620.0,0.85288]
[1757601360643,0.08959,114620.0,114600.0,0.47467611]
[1757601360942,0.08959,114620.0,114610.0,0.85248]
[1757601361144,0.08959,114620.0,114610.0,0.9197]
[1757601361442,0.08959,114620.0,114610.0,0.06722]
[1757601361638,0.08959,114620.0,114610.0,0.91974]
[1757601362230,0.08959,114620.0,114610.0,1.02595]
[1757601362435,0.08959,114620.0,114610.0,1.27595]
[1757601363344,0.09059,114620.0,114610.0,1.27523]
[1757601363542,0.09059,114620.0,114610.0,1.27495]
[1757601364740,0.09059,114620.0,114610.0,0.42343]
[1757601364943,0.09059,114620.0,114610.0,1.27487]
[1757601365137,0.09059,114620.0,114610.0,0.42343]
[1757601365332,0.14598,114620.0,114600.0,0.41112]
[1757601365538,0.17917,114610.0,114590.0,2.23555611]
[1757601365749,0.53997,114610.0,114600.0,0.85092]
[1757601366133,0.47042,114610.0,114600.0,1.16814]
[1757601366435,0.10962,114610.0,114600.0,1.16814]
[1757601366637,0.11062,114620.0,114610.0,0.17343]
[1757601367138,0.10962,114620.0,114610.0,0.17343]
[1757601367548,0.10962,114620.0,114610.0,1.02419]
[1757601367944,0.53997,114620.0,114610.0,0.95681]
[1757601368339,0.53997,114620.0,114610.0,0.8506]
[1757601368642,0.53997,114620.0,114600.0,0.17343]
[1757601368643,0.17198,114610.0,114600.0,0.17343]
[1757601368841,0.17198,114610.0,114600.0,1.02431]
[1757601369043,0.17198,114610.0,114600.0,1.02415]
[1757601369341,0.10962,114610.0,114600.0,1.02395]
[1757601369740,0.10962,114610.0,114600.0,1.27395]
[1757601370449,0.10962,114610.0,114600.0,1.27483]
[1757601370750,0.17917,114610.0,114590.0,2.16956181]
[1757601371046,0.06955,114600.0,114590.0,2.16956181]
[1757601371242,0.10962,114600.0,114590.0,3.02000181]
[1757601371547,0.10962,114600.0,114590.0,1.80876181]
[1757601371738,0.17917,114600.0,114590.0,1.76088]
[1757601371941,0.17917,114600.0,114590.0,2.611]
[1757601372244,0.53997,114600.0,114590.0,2.612]
[1757601373544,0.53997,114600.0,114590.0,2.8759]
[1757601374344,0.53997,114600.0,114590.0,2.8769]
[1757601374539,0.53997,114600.0,114590.0,1.84389]
[1757601374744,0.53997,114600.0,114590.0,2.66898]
[1757601374745,0.78997,114600.0,114590.0,2.66898]
[1757601374948,0.53997,114600.0,114590.0,2.66601]
[1757601375249,0.10962,114600.0,114590.0,2.73323]
[1757601375546,0.10962,114600.0,114590.0,3.09403]
[1757601375749,0.10962,114600.0,114590.0,3.34403]
[1757601376046,0.53278,114620.0,114610.0,0.10621]
[1757601376246,0.06955,114600.0,114590.0,1.77916882]
[1757601376445,0.43035,114600.0,114590.0,2.61676882]
[1757601376646,0.43035,114600.0,114590.0,2.58572]
[1757601376942,0.3608,114600.0,114590.0,2.65294]
[1757601377138,0.06955,114600.0,114590.0,2.58572]
[1757601377339,0.06955,114600.0,114590.0,2.58472]
[1757601378351,0.06955,114600.0,114590.0,2.58572]
[1757601378951,0.55797103,114610.0,114590.0,2.65294]
[1757601379156,0.10962,114600.0,114590.0,2.65294]
[1757601379344,0.10962,114600.0,114590.0,2.74984]
[1757601379544,0.10962,114620.0,114610.0,0.17343]
[1757601379745,0.53796,114620.0,114610.0,1.02155]
[1757601380149,0.78796,114620.0,114610.0,0.10621]
[1757601380454,0.78796,114620.0,114610.0,0.848]
[1757601381453,0.78796,114620.0,114610.0,0.95421]
[1757601382247,0.9196702,114620.0,114610.0,0.848]
[1757601382564,0.9196702,114620.0,114600.0,0.09829808]
[1757601382756,0.6696702,114620.0,114610.0,0.84676]
[1757601383452,0.6696702,114620.0,114610.0,0.95259]
[1757601384844,0.6696702,114620.0,114600.0,0.09829808]
[1757601385146,0.17341,114610.0,114600.0,0.20412808]
[1757601385353,0.17341,114610.0,114600.0,1.05004808]
[1757601385948,0.1069,114610.0,114600.0,1.05004808]
[1757601386950,0.1069,114610.0,114600.0,0.20512808]
[1757601387249,0.1069,114610.0,114600.0,1.09742419]
[1757601387559,0.17341,114610.0,114600.0,0.13790808]
[1757601387750,0.17341,114610.0,114600.0,0.98278808]
[1757601387951,0.53421,114610.0,114600.0,1.00614333]
[1757601388448,0.53421,114610.0,114600.0,1.27004333]
[1757601388850,0.53421,114610.0,114600.0,0.42516333]
[1757601389050,0.53421,114610.0,114600.0,0.71941333]
[1757601389346,0.06651,114600.0,114590.0,1.51739611]
[1757601389655,0.42731,114600.0,114590.0,1.51739611]
[1757601389954,0.42731,114600.0,114590.0,2.31466]
[1757601390153,0.42731,114600.0,114590.0,1.47074]
[1757601390355,0.67731,114600.0,114590.0,1.47074]
[1757601390660,0.67731,114600.0,114590.0,2.31542]
[1757601390849,0.67731,114600.0,114590.0,1.47174]
[1757601391048,0.1069,114600.0,114590.0,1.81164]
[1757601391250,0.1069,114600.0,114590.0,2.655]
[1757601391557,0.1069,114600.0,114590.0,2.65684]
[1757601391951,0.1069,114600.0,114590.0,2.72338]
[1757601392360,0.1069,114600.0,114590.0,2.97338]